fUSD/lending_fUSD_20240827
["ID","MTS","AMOUNT","RATE_DAILY","PERIOD"]
[336377447,1724796644742,-478.0,0.000138,2]
[336377449,1724796644752,-625182.959074,0.000138,3]
[336377451,1724796644762,-500.0,0.00013808,2]
[336377453,1724796644771,-500.0,0.00013808,2]
[336377455,1724796644781,-600.0,0.00013808,2]
[336377457,1724796644791,-173.0,0.00013808,2]
[336377459,1724796644800,-555.0,0.00013851,2]
[336377461,1724796644809,-810.0,0.00013851,2]
[336377463,1724796644819,-179.51661308,0.00013873,2]
[336377465,1724796644828,-300.92,0.00013882,2]
[336377467,1724796644838,-426.87,0.00013882,2]
[336377469,1724796644847,-356.86,0.00013882,2]
[336377471,1724796644857,-45853.2547313,0.0001389,2]
[336377473,1724796644866,-151.0,0.000139,2]
[336377475,1724796644876,-151.0,0.000139,2]
[336377477,1724796644885,-162.716332,0.000139,2]
[336377479,1724796644895,-162.716332,0.000139,2]
[336377481,1724796644904,-151.0,0.000139,2]
[336377483,1724796644914,-248.106751,0.000139,2]
[336377484,1724796644924,-248.106751,0.000139,2]
[336377486,1724796644934,-211.000817,0.000139,2]
[336377488,1724796644944,-162.051926,0.000139,2]
[336377490,1724796644953,-162.051926,0.000139,2]
[336377492,1724796644963,-258.887194,0.000139,2]
[336377494,1724796644975,-258.887194,0.000139,2]
[336377496,1724796644985,-151.0,0.000139,2]
[336377498,1724796644995,-151.0,0.000139,2]
[336377500,1724796645004,-151.0,0.000139,2]
[336377502,1724796645014,-151.0,0.000139,2]
[336377504,1724796645026,-151.0,0.000139,2]
[336377506,1724796645036,-625199.845253,0.000139,3]
[336377508,1724796645046,-171.649682,0.000139,2]
[336377510,1724796645055,-171.649682,0.000139,2]
[336377512,1724796645065,-151.0,0.000139,2]
[336377514,1724796645074,-151.0,0.000139,2]
[336377516,1724796645083,-151.0,0.000139,2]
[336377518,1724796645092,-4171.562588,0.000139,2]
[336377520,1724796645103,-4171.562588,0.000139,2]
[336377522,1724796645112,-151.0,0.000139,2]
[336377539,1724796645122,-339.13518,0.000139,2]
[336377542,1724796645291,-339.13518,0.000139,2]
[336377544,1724796645301,-161.538251,0.000139,2]
[336377546,1724796645310,-384.08921,0.0001393,2]
[336377548,1724796645320,-3469.82816641,0.0001395,5]
[336377550,1724796645329,-29924.54677825,0.00014,4]
[336377551,1724796645338,-1000.0,0.00014,3]
[336377553,1724796645347,-267.15950808,0.00014,2]
[336377555,1724796645357,-806.1436612,0.00014,4]
[336377557,1724796645367,-3023.0,0.00014,2]
[336377559,1724796645376,-3000.0,0.00014,2]
[336377561,1724796645386,-10000.0,0.00014,2]
[336377563,1724796645395,-1770.15425093,0.00014,2]
[336377565,1724796645405,-2492.73273132,0.00014,6]
[336377567,1724796645415,-150.0,0.00014,2]
[336377569,1724796645425,-524.73281156,0.00014028,2]
[336377571,1724796645434,-596.94,0.00014161,2]
[336377573,1724796645444,-795.0,0.00014216,2]
[336377575,1724796645453,-1000.33653,0.00014247,2]
[336377577,1724796645463,-478.0,0.000143,2]
[336377579,1724796645476,-2946.85,0.00014384,2]
[336377581,1724796645486,-173.0,0.00014499,2]
[336377583,1724796645496,-737.6,0.0001456,2]
[336377585,1724796645506,-596.94,0.00014586,2]
[336377587,1724796645516,-199.33,0.0001459,2]
[336377589,1724796645526,-693.55947488,0.00014625,2]
[336377591,1724796645535,-568.85604933,0.00014625,2]
[336377593,1724796645545,-1152.0,0.00014653,2]
[336377595,1724796645555,-155.0,0.00014753,2]
[336377597,1724796645566,-155.0,0.00014753,2]
[336377599,1724796645576,-158.5,0.00014777,2]
[336377601,1724796645587,-184.66,0.00014779,2]
[336377603,1724796645596,-476.10012176,0.00014782,2]
[336377605,1724796645606,-841.85556529,0.00014789,2]
[336377607,1724796645615,-150.0,0.0001479,2]
[336377609,1724796645625,-328.0,0.00014796,2]
[336377610,1724796645634,-478.0,0.000148,2]
[336377612,1724796645643,-600.0,0.00014904,2]
[336377614,1724796645653,-442.06,0.00014932,2]
[336377616,1724796645663,-795.0,0.00014964,2]
[336377618,1724796645673,-51771.68214481,0.0001499,2]
[336377636,1724796645847,-257.884,0.0001499,2]
[336377639,1724796645859,-700.89497239,0.0001499,2]
[336377641,1724796645868,-995.95145591,0.00014999,2]
[336377642,1724796645878,-496.0,0.00015,2]
[336377644,1724796645888,-226.03493967,0.00015,2]
[336377647,1724796645899,-398.90199133,0.00015,2]
[336377649,1724796645909,-424.45098858,0.00015,4]
[336377651,1724796645920,-194.54901142,0.00015,4]
[336377654,1724796645930,-162.45267658,0.00015,2]
[336377657,1724796645942,-514.57780811,0.00015,2]
[336377659,1724796645951,-496.0,0.00015,2]
[336377661,1724796645960,-496.0,0.00015,2]
[336377663,1724796645973,-194.9870531,0.00015,2]
[336377665,1724796645982,-1932.73984921,0.00015,2]
[336377667,1724796645992,-753.15793599,0.00015,2]
[336377669,1724796646007,-1841.79061121,0.00015,2]
[336377672,1724796646019,-840.10442546,0.00015,2]
[336377675,1724796646030,-7093.66717529,0.00015,2]
[336377677,1724796646044,-1044.12646999,0.00015,2]
[336377679,1724796646059,-11970.88762485,0.00015,2]
[336377697,1724796646202,-623.2797952,0.00010791,2]
[336377699,1724796646214,-834.92804833,0.00010791,2]
[336377701,1724796646230,-296.95776435,0.00010791,2]
[336377703,1724796646242,-492.61429212,0.00010791,2]
[336377705,1724796646252,-74.01431461,0.00010944,2]
[336377708,1724796646268,-75.98568539,0.00010944,2]
[336377710,1724796646278,-500.0,0.00010958,2]
[336377712,1724796646287,-500.0,0.00010998,2]
[336377714,1724796646297,-500.0,0.00010998,2]
[336377716,1724796646307,-151.0,0.00011,2]
[336377718,1724796646316,-151.0,0.00011,2]
[336377720,1724796646326,-151.0,0.00011,2]
[336377722,1724796646336,-151.0,0.00011,2]
[336377724,1724796646346,-151.0,0.00011,2]
[336377726,1724796646356,-151.0,0.00011,2]
[336377728,1724796646366,-151.0,0.00011,2]
[336377730,1724796646375,-151.0,0.00011,2]
[336377732,1724796646386,-821.0,0.00013333,2]
[336377734,1724796646395,-151.0,0.000135,2]
[336377736,1724796646405,-202.40474917,0.00013773,2]
[336377738,1724796646415,-151.0,0.000139,2]
[336377740,1724796646425,-367.18796544,0.00015,2]
[336377743,1724796646442,-419.87653924,0.00013797,5]
[336377745,1724796646454,-767.26088196,0.00013797,5]
[336377747,1724796646464,-17917.04765304,0.00015,2]
[336377750,1724796646480,-7059.3,0.00015,2]
[336377752,1724796646491,-317.58278286,0.00015,2]
[336377754,1724796646503,-3092.16505303,0.00015,2]
[336377756,1724796646514,-605.72176379,0.00015,2]
[336377758,1724796646526,-300.0,0.00015,2]
[336377762,1724796646552,-343.80552579,0.00010998,2]
[336377764,1724796646562,-54.98386924,0.00011,2]
[336377777,1724796646674,-500.0,0.00010958,2]
[336377779,1724796646684,-500.0,0.00010997,2]
[336377781,1724796646693,-500.0,0.00010997,2]
[336377783,1724796646703,-500.0,0.00010998,2]
[336377785,1724796646713,-455.32,0.00010998,2]
[336377787,1724796646726,-96.01613076,0.00011,2]
[336377789,1724796646735,-151.0,0.000135,2]
[336377791,1724796646744,-151.0,0.000135,2]
[336377793,1724796646752,-151.0,0.000139,2]
[336377795,1724796646761,-151.0,0.000139,2]
[336377797,1724796646770,-150.0,0.00014963,2]
[336377799,1724796646779,-1375.66386924,0.00015,2]
[336377801,1724796646791,-30044.55118521,0.00015,2]
[336377803,1724796646801,-995.04,0.00015,2]
[336377805,1724796646812,-867.13,0.00015,2]
[336377808,1724796646827,-587.2050527,0.00015,2]
[336377810,1724796646838,-1502.556,0.00015,2]
[336377813,1724796646858,-150.0,0.00014851,2]
[336377815,1724796646867,-166.99295509,0.0001491,2]
[336377817,1724796646876,-5644.90704491,0.00015,2]
[336377819,1724796646887,-306.5016076,0.00015,2]
[336377821,1724796646900,-362.2774596,0.00015,2]
[336377823,1724796646910,-376.87925389,0.00015,2]
[336377825,1724796646922,-3625.5644,0.00015,2]
[336377827,1724796646933,-10310.39,0.00015,2]
[336377830,1724796646944,-5409.76126448,0.00015,2]
[336377832,1724796646955,-1214.69466643,0.00015,2]
[336377834,1724796646968,-498.27417816,0.00015,2]
[336377836,1724796646982,-131403.4659846,0.00015,2]
[336377838,1724796646991,-4349.05556084,0.00015,2]
[336377840,1724796647004,-4498.03466,0.00015,2]
[336377842,1724796647016,-822.35406796,0.00015,2]
[336377845,1724796647030,-12011.00112001,0.00015,2]
[336377847,1724796647041,-1150.408,0.00015,2]
[336377849,1724796647054,-2693.82653913,0.00015,2]
[336377851,1724796647066,-6546.54000011,0.00015,2]
[336377853,1724796647078,-436.81,0.00015,2]
[336377855,1724796647091,-64563.93887599,0.00015,2]
[336377858,1724796647107,-279.6363521,0.00015,2]
[336379419,1724796803639,500.0,0.00024932,120]
[336379421,1724797094846,175.28,8.242e-05,2]
[336379425,1724797153003,155.17442488,8.242e-05,2]
[336379426,1724797156570,621.86959348,8.242e-05,2]
[336379427,1724797159900,606.75557512,8.242e-05,2]
[336379428,1724797160325,292.7706088,8.242e-05,2]
[336379429,1724797203083,150.0,8.242e-05,2]
[336379430,1724797203306,150.0,8.242e-05,2]
[336379431,1724797203552,150.0,8.242e-05,2]
[336379432,1724797203792,150.0,8.242e-05,2]
[336379433,1724797204007,150.0,8.242e-05,2]
[336379434,1724797204238,208.14,8.242e-05,2]
[336379435,1724797216504,401.81,8.26e-05,2]
[336379439,1724797403927,500.0,0.00024932,120]
[336379440,1724797431280,297.84709197,9.91e-05,2]
[336379444,1724797527048,23900.0,9.672e-05,2]
[336379445,1724797532923,394.76,9.672e-05,2]
[336379446,1724797554084,590.58,9.583e-05,2]
[336379448,1724797559616,1680.5,9.581e-05,2]
[336379449,1724797594302,1850.0,0.00023,60]
[336379456,1724797650660,487.67,9.534e-05,2]
[336379457,1724797651649,7883.52,9.534e-05,2]
[336379459,1724797667779,250.0,9.538e-05,2]
[336379461,1724797726384,949.88761953,9.909e-05,2]
[336379462,1724797743349,436.95,9.632e-05,2]
[336379502,1724797831106,238.07,9.651e-05,2]
[336379525,1724797832474,-2353.36912186,9.943e-05,2]
[336379526,1724797832485,-1852.42,9.968e-05,2]
[336379528,1724797832496,-300.0,9.998e-05,2]
[336379530,1724797832509,-300.0,9.998e-05,2]
[336379532,1724797832522,-589.4227239,9.999e-05,2]
[336379534,1724797832533,-1050.0,0.0001,2]
[336379536,1724797832545,-2114.38838798,0.0001,2]
[336379538,1724797832557,-155.24616328,0.00010009,2]
[336379540,1724797832569,-380.75615152,0.00010009,2]
[336379542,1724797832579,-165.49,0.0001004,2]
[336379543,1724797832589,-2145.01160036,0.00010097,2]
[336379544,1724797832599,-12259.3548491,0.000101,2]
[336379545,1724797832612,-177.69315828,0.000101,2]
[336379546,1724797832622,-150.99,0.000101,2]
[336379547,1724797832632,-200.0,0.00010139,2]
[336379548,1724797832643,-2077.55,0.00010249,2]
[336379549,1724797832655,-500.0,0.00010273,2]
[336379550,1724797832667,-3747.18558155,0.00010399,2]
[336379551,1724797832681,-3917.81543552,0.00010399,2]
[336379552,1724797832693,-500.0,0.00010418,2]
[336379553,1724797832704,-500.0,0.00010427,2]
[336379554,1724797832714,-500.0,0.00010436,2]
[336379555,1724797832724,-276.16922048,0.00010445,2]
[336379556,1724797832738,-223.83077952,0.00010445,2]
[336379557,1724797832750,-500.0,0.00010453,2]
[336379558,1724797832763,-150.0,0.0001046,2]
[336379559,1724797832775,-2356.75497333,0.00010461,2]
[336379560,1724797832792,-368.84115434,0.00010461,2]
[336379561,1724797832805,-4561.78740946,0.00010461,2]
[336379562,1724797832815,-500.0,0.00010462,2]
[336379563,1724797832827,-500.0,0.00010471,2]
[336379564,1724797832838,-388.21259054,0.00010524,2]
[336379565,1724797832850,-13.59740946,0.00010524,2]
[336379566,1724797832862,-2386.40259052,0.00010798,2]
[336379567,1724797832878,-295.635,0.00010798,2]
[336379568,1724797835925,-506.70161208,0.00010798,2]
[336379569,1724797835938,-3476.12861861,0.00010798,2]
[336379570,1724797835951,-3082.03617125,0.00010798,2]
[336379571,1724797835965,-5912.0,0.00010798,2]
[336379572,1724797835977,-899.999998,0.00010798,2]
[336379573,1724797835989,-1634.08441588,0.00010798,2]
[336379574,1724797837070,-4590.36780035,0.00010798,2]
[336379575,1724797837081,-92283.71258948,0.0001088,2]
[336379576,1724797837093,-330.0106221,0.00010897,2]
[336379577,1724797837105,-6123.0235,0.00010899,2]
[336379578,1724797837116,-2013.16371568,0.00010899,2]
[336379579,1724797837127,-2013.16371565,0.00010899,2]
[336379580,1724797837138,-2013.16371565,0.00010899,2]
[336379581,1724797837150,-2013.16371565,0.00010899,2]
[336379582,1724797837161,-2013.16371565,0.00010899,2]
[336379583,1724797837171,-2013.16371565,0.00010899,2]
[336379584,1724797837181,-2013.16371565,0.00010899,2]
[336379585,1724797837192,-2013.16371565,0.00010899,2]
[336379586,1724797837203,-2013.16371565,0.00010899,2]
[336379587,1724797837213,-174.29338501,0.00010899,2]
[336379588,1724797837224,-158.4658099,0.00010899,2]
[336379589,1724797837235,-2013.16371565,0.000109,2]
[336379590,1724797837246,-211.55324507,0.000109,2]
[336379591,1724797837256,-1380.4067371,0.000109,2]
[336379592,1724797837267,-198.03408236,0.000109,2]
[336379593,1724797837278,-1000.0,0.00010948,3]
[336379594,1724797837290,-179087.10641229,0.0001095,3]
[336379595,1724797837301,-500.0,0.00010958,2]
[336379596,1724797837312,-500.0,0.00010958,2]
[336379597,1724797837323,-500.0,0.00010958,2]
[336379598,1724797837334,-500.0,0.00010958,2]
[336379599,1724797837345,-500.0,0.00010958,2]
[336379600,1724797837355,-246.32010246,0.00010958,2]
[336379601,1724797837366,-500.0,0.00010958,2]
[336379602,1724797837377,-388.32788482,0.00010958,2]
[336379603,1724797837387,-500.0,0.00010958,2]
[336379604,1724797837399,-500.0,0.00010958,2]
[336379605,1724797837409,-500.0,0.00010958,2]
[336379606,1724797837420,-500.0,0.00010958,2]
[336379607,1724797837430,-500.0,0.00010958,2]
[336379608,1724797837441,-500.0,0.00010958,2]
[336379609,1724797837452,-500.0,0.00010958,2]
[336379611,1724797837462,-500.0,0.00010958,2]
[336379613,1724797837474,-500.0,0.00010958,2]
[336379615,1724797837485,-500.0,0.00010958,2]
[336379617,1724797837496,-500.0,0.00010958,2]
[336379619,1724797837507,-500.0,0.00010958,2]
[336379621,1724797837518,-500.0,0.00010958,2]
[336379623,1724797837529,-500.0,0.00010958,2]
[336379625,1724797837540,-500.0,0.00010958,2]
[336379627,1724797837551,-500.0,0.00010958,2]
[336379629,1724797837561,-500.0,0.00010958,2]
[336379631,1724797837572,-500.0,0.00010958,2]
[336379634,1724797837583,-500.0,0.00010958,2]
[336379636,1724797837594,-500.0,0.00010958,2]
[336379638,1724797837604,-500.0,0.00010958,2]
[336379640,1724797837615,-500.0,0.00010958,2]
[336379642,1724797837626,-500.0,0.00010958,2]
[336379644,1724797837637,-500.0,0.00010958,2]
[336379646,1724797837648,-500.0,0.00010958,2]
[336379648,1724797837659,-344.04425472,0.00010958,2]
[336379650,1724797837669,-500.0,0.00010958,2]
[336379652,1724797837679,-500.0,0.00010958,2]
[336379654,1724797837690,-500.0,0.00010958,2]
[336379656,1724797837700,-500.0,0.00010958,2]
[336379658,1724797837711,-500.0,0.00010958,2]
[336379660,1724797837722,-500.0,0.00010958,2]
[336379662,1724797837732,-500.0,0.00010958,2]
[336379664,1724797837742,-500.0,0.00010958,2]
[336379666,1724797837753,-500.0,0.00010958,2]
[336379668,1724797837764,-500.0,0.00010958,2]
[336379670,1724797837774,-580.79,0.00010958,2]
[336379672,1724797837785,-597.78370402,0.00010958,2]
[336379674,1724797837796,-153.49831351,0.00010958,2]
[336379676,1724797837807,-514.81498683,0.00010958,2]
[336379678,1724797837817,-500.0,0.00010958,2]
[336379680,1724797837829,-500.0,0.00010958,2]
[336379681,1724797837840,-512.17027799,0.00010958,2]
[336379682,1724797837851,-500.0,0.00010958,2]
[336379683,1724797837862,-500.0,0.00010958,2]
[336379684,1724797837872,-500.0,0.00010958,2]
[336379685,1724797837883,-578.92481876,0.00010958,2]
[336379686,1724797837894,-500.0,0.00010958,2]
[336379689,1724797838145,-500.0,0.00010958,2]
[336379690,1724797838168,-500.0,0.00010958,2]
[336379691,1724797838184,-538.45,0.00010958,2]
[336379692,1724797838194,-249.87,0.00010959,2]
[336379693,1724797838203,-2000.0,0.00010959,2]
[336379694,1724797838213,-150.0,0.00010959,2]
[336379695,1724797838222,-779.07,0.00010959,2]
[336379696,1724797838232,-1500.0,0.00010959,2]
[336379698,1724797838241,-250.0,0.00010959,2]
[336379700,1724797838251,-200.0,0.00010973,2]
[336379702,1724797838260,-500.0,0.00010973,2]
[336379703,1724797838271,-231.78875221,0.00010973,2]
[336379704,1724797838281,-159.99726846,0.00010973,2]
[336379705,1724797838290,-522.82863801,0.00010988,2]
[336379706,1724797838300,-210.95636886,0.00010989,2]
[336379707,1724797838310,-154.93,0.0001099,2]
[336379708,1724797838320,-154.93,0.0001099,2]
[336379709,1724797838330,-154.93,0.0001099,2]
[336379710,1724797838340,-154.93,0.0001099,2]
[336379711,1724797838350,-154.93,0.0001099,2]
[336379712,1724797838359,-154.93,0.0001099,2]
[336379713,1724797838369,-154.93,0.0001099,2]
[336379714,1724797838379,-154.93,0.0001099,2]
[336379715,1724797838389,-154.93,0.0001099,2]
[336379716,1724797838399,-154.93,0.0001099,2]
[336379717,1724797838410,-154.93,0.0001099,2]
[336379718,1724797838419,-154.93,0.0001099,2]
[336379720,1724797838429,-154.93,0.0001099,2]
[336379721,1724797838439,-154.93,0.0001099,2]
[336379722,1724797838449,-154.93,0.0001099,2]
[336379724,1724797838458,-154.93,0.0001099,2]
[336379726,1724797838468,-154.93,0.0001099,2]
[336379727,1724797838478,-154.93,0.0001099,2]
[336379728,1724797838487,-154.93,0.0001099,2]
[336379729,1724797838496,-500.0,0.0001099,2]
[336379730,1724797838505,-14544.86105232,0.00010997,2]
[336379731,1724797838514,-150.0,0.00010997,2]
[336379732,1724797838523,-150.0,0.00010997,2]
[336379733,1724797838532,-150.0,0.00010997,2]
[336379734,1724797838542,-150.0,0.00010997,2]
[336379735,1724797838551,-150.0,0.00010997,2]
[336379736,1724797838561,-500.0,0.00010997,2]
[336379737,1724797838571,-500.0,0.00010997,2]
[336379738,1724797838581,-406.18781871,0.00010997,2]
[336379739,1724797838591,-500.0,0.00010997,2]
[336379740,1724797838601,-500.0,0.00010997,2]
[336379741,1724797838611,-500.0,0.00010997,2]
[336379742,1724797838620,-500.0,0.00010997,2]
[336379743,1724797838630,-500.0,0.00010997,2]
[336379744,1724797838640,-500.0,0.00010997,2]
[336379745,1724797838650,-203.81197967,0.00010997,2]
[336379746,1724797838660,-294.27195029,0.00010997,2]
[336379747,1724797838671,-584.26072503,0.00010997,2]
[336379748,1724797838681,-500.0,0.00010997,2]
[336379749,1724797838691,-500.0,0.00010997,2]
[336379750,1724797838701,-342.5184,0.00010997,2]
[336379751,1724797838712,-500.0,0.00010997,2]
[336379752,1724797838722,-511.28,0.00010997,2]
[336379753,1724797838732,-500.0,0.00010997,2]
[336379754,1724797838742,-267.04884269,0.00010997,2]
[336379755,1724797838752,-221.72,0.00010997,2]
[336379756,1724797838762,-500.0,0.00010997,2]
[336379757,1724797838773,-500.0,0.00010997,2]
[336379758,1724797838783,-500.0,0.00010997,2]
[336379759,1724797838793,-460.7647557,0.00010997,2]
[336379760,1724797838803,-500.0,0.00010997,2]
[336379761,1724797838813,-535.00442832,0.00010997,2]
[336379762,1724797838823,-500.0,0.00010998,2]
[336379763,1724797838834,-263.15072629,0.00010998,2]
[336379764,1724797838844,-240.50321505,0.00010998,2]
[336379765,1724797838854,-500.0,0.00010998,2]
[336379766,1724797838864,-420.0,0.00010998,2]
[336379767,1724797838874,-150.0,0.00010998,2]
[336379768,1724797838884,-150.0,0.00010998,2]
[336379769,1724797838893,-150.0,0.00010998,2]
[336379771,1724797838903,-150.0,0.00010998,2]
[336379773,1724797838914,-150.0,0.00010998,2]
[336379775,1724797838923,-35000.0,0.00010999,2]
[336379777,1724797838933,-5570.31486639,0.00010999,2]
[336379778,1724797838942,-2259.0,0.00010999,2]
[336379780,1724797838952,-500.0,0.00010999,2]
[336379782,1724797838962,-3941.13698771,0.00010999,2]
[336379783,1724797838971,-500.0,0.00010999,2]
[336379785,1724797838981,-500.0,0.00010999,2]
[336379787,1724797838991,-500.0,0.00010999,2]
[336379789,1724797839000,-500.0,0.00010999,2]
[336379791,1724797839010,-500.0,0.00010999,2]
[336379793,1724797839020,-238.89110173,0.00010999,2]
[336379795,1724797839029,-3244.6053012,0.00010999,2]
[336379797,1724797839039,-500.0,0.00010999,2]
[336379799,1724797839049,-538.45,0.00010999,2]
[336379800,1724797839066,-500.0,0.00010999,2]
[336379802,1724797839077,-538.45,0.00010999,2]
[336379804,1724797839087,-500.0,0.00010999,2]
[336379806,1724797839096,-538.45,0.00010999,2]
[336379808,1724797839105,-500.0,0.00010999,2]
[336379810,1724797839119,-538.45,0.00010999,2]
[336379812,1724797839128,-538.45,0.00010999,2]
[336379814,1724797839138,-500.0,0.00010999,2]
[336379816,1724797839149,-642054.22608416,0.00011,2]
[336379818,1724797839163,-609.86344662,0.00011,2]
[336379820,1724797839175,-2130.0651454,0.00011,2]
[336379822,1724797839186,-3152.61260283,0.00011,2]
[336379824,1724797839197,-4223.30804722,0.00011,2]
[336379826,1724797839209,-11308.2299457,0.00011,2]
[336379829,1724797839221,-1100.52168804,0.00011,2]
[336379837,1724797839303,-500.0,0.00010999,2]
[336379840,1724797839313,-538.45,0.00010999,2]
[336379843,1724797839323,-500.0,0.00010999,2]
[336379845,1724797839332,-538.45,0.00010999,2]
[336379848,1724797839341,-422.19501739,0.00010999,2]
[336379850,1724797839350,-538.45,0.00010999,2]
[336379852,1724797839360,-538.45,0.00010999,2]
[336379854,1724797839369,-538.45,0.00010999,2]
[336379856,1724797839379,-3313.89068372,0.00011,2]
[336379858,1724797839390,-500.54133244,0.00011,2]
[336379860,1724797839405,-377.94191709,0.00011,2]
[336379862,1724797839419,-293.88116354,0.00011,2]
[336379864,1724797839430,-29047.07754972,0.00011,2]
[336379866,1724797839443,-1332.13345569,0.00011,2]
[336379868,1724797839454,-748.74749312,0.00011,2]
[336379870,1724797839466,-29492.000001,0.00011,2]
[336379873,1724797839477,-1692.85057735,0.00011,2]
[336379875,1724797839490,-835.77,0.00011,2]
[336379877,1724797839501,-4075.32044829,0.00011,2]
[336379879,1724797839513,-4161.2386386,0.00011,2]
[336379881,1724797839524,-1522.84487017,0.00011,2]
[336379883,1724797839536,-5885.88,0.00011,2]
[336379885,1724797839548,-255.3477856,0.00011,2]
[336379887,1724797839559,-1339.53078098,0.00011,2]
[336379889,1724797839586,-2735.53908701,0.00011,2]
[336379891,1724797839597,-1286.28389242,0.00011,2]
[336379893,1724797839609,-653.67901261,0.00011,2]
[336379896,1724797839623,-837.98154881,0.00011,2]
[336379898,1724797839635,-330.06846515,0.00011,2]
[336379978,1724797840456,-538.45,0.00010999,2]
[336379980,1724797840466,-538.45,0.00010999,2]
[336379982,1724797840476,-538.45,0.00010999,2]
[336379984,1724797840488,-538.45,0.00010999,2]
[336379986,1724797840499,-538.45,0.00010999,2]
[336379988,1724797840509,-538.45,0.00010999,2]
[336379990,1724797840519,-18799.87846898,0.00011,2]
[336379992,1724797840531,-1184.2407,0.00011,2]
[336379995,1724797840547,-1045.1903527,0.00011,2]
[336379997,1724797840558,-14932.07717095,0.00011,2]
[336379999,1724797840584,-3246.78615223,0.00011,2]
[336380002,1724797840595,-1102.735,0.00011,2]
[336380004,1724797840611,-2636.66922912,0.00011,2]
[336380014,1724797840700,-22446.09335271,0.00011,2]
[336380016,1724797840712,-1076.0,0.00011,2]
[336380018,1724797840723,-274.79233017,0.00011,2]
[336380020,1724797840735,-540.0,0.00011,2]
[336380022,1724797840746,-1578.2277519,0.00011,2]
[336380025,1724797840757,-10098.33949437,0.00011,2]
[336380035,1724797840859,-538.45,0.00010999,2]
[336380037,1724797840869,-5373.9892051,0.00011,2]
[336380041,1724797840895,-551025.59105444,0.00011,2]
[336380043,1724797840905,-221.0,0.00011,2]
[336380045,1724797840915,-2000.0,0.00011,2]
[336380047,1724797840924,-2000.0,0.00011,2]
[336380048,1724797840933,-4708696.39278127,0.00011,2]
[336380051,1724797840945,-3698.29925328,0.00011,2]
[336380053,1724797840956,-4027.73754924,0.00011,2]
[336380055,1724797840967,-466.66999,0.00011,2]
[336380064,1724797841050,-925.99255984,0.00011,2]
[336380313,1724797843458,-500.0,0.00010958,2]
[336380314,1724797843468,-206.59936734,0.00010958,2]
[336380334,1724797843586,-293.40063266,0.00010958,2]
[336380336,1724797843598,-500.0,0.00010997,2]
[336380338,1724797843608,-500.0,0.00010997,2]
[336380340,1724797843617,-471.29456274,0.00010997,2]
[336380342,1724797843629,-28.70543726,0.00010997,2]
[336380344,1724797843640,-538.45,0.00010999,2]
[336380347,1724797843650,-538.45,0.00010999,2]
[336380349,1724797843660,-538.45,0.00010999,2]
[336380351,1724797843670,-538.45,0.00010999,2]
[336380353,1724797843680,-538.45,0.00010999,2]
[336380355,1724797843690,-500.0,0.00010999,2]
[336380357,1724797843699,-538.55,0.00010999,2]
[336380359,1724797843709,-500.0,0.00010999,2]
[336380361,1724797843718,-500.0,0.00010999,2]
[336380363,1724797843728,-500.0,0.00010999,2]
[336380365,1724797843737,-164.36640056,0.00011,2]
[336380368,1724797843750,-1020.69445892,0.00011,2]
[336380370,1724797843761,-14786.01616114,0.00011,2]